bitfinex/quotes_ETHUSD_20241123
["timestamp","ask_amount","ask_price","bid_price","bid_amount"]
[1732353211630,0.55,3354.1,3353.5,35.03134513]
[1732353211929,0.7688,3353.9,3353.5,35.03134513]
[1732353212230,0.02,3355.1,3353.5,35.03134513]
[1732353212231,0.7688,3353.7,3353.5,35.03134513]
[1732353212394,0.7688,3353.7,3353.5,0.03134513]
[1732353212791,0.7688,3353.7,3352.3,0.2969]
[1732353213017,0.7688,3353.7,3352.4,35.2969]
[1732353213209,0.7688,3353.7,3352.5,2.99141464]
[1732353213621,0.7688,3353.7,3352.6,0.02942494]
[1732353214131,0.7688,3353.7,3352.6,0.32632494]
[1732353215695,0.7688,3353.7,3352.6,0.02942494]
[1732353216710,0.7688,3353.7,3352.7,35.0]
[1732353216914,0.7688,3353.7,3352.7,35.02942246]
[1732353219040,0.7688,3353.7,3352.8,0.7851]
[1732353219341,0.7688,3353.7,3352.7,35.02942246]
[1732353219342,0.7688,3353.7,3352.9,0.02933599]
[1732353219518,0.7688,3353.7,3352.7,35.0]
[1732353219836,0.7688,3353.7,3353.0,0.02929053]
[1732353220016,0.0372774,3353.6,3351.6,3.9051]
[1732353220219,0.7688,3354.6,3353.1,0.02867751]
[1732353220400,0.7688,3354.4,3351.7,35.4202]
[1732353220605,0.01,3354.8,3351.7,35.4202]
[1732353220606,0.01,3354.0,3351.7,35.0]
[1732353220804,0.56,3354.1,3351.8,0.02932729]
[1732353220805,0.8017,3353.5,3351.8,0.02932729]
[1732353221025,0.8017,3353.3,3351.8,0.02932729]
[1732353221253,0.55,3353.0,3351.8,0.00633935]
[1732353221421,0.55,3352.6,3351.8,0.0284409]
[1732353221618,0.8017,3352.4,3351.8,0.0284409]
[1732353221836,0.83899188,3352.3,3351.8,0.0284409]
[1732353222221,0.8017,3352.3,3350.8,0.2969]
[1732353222422,0.8017,3352.3,3351.9,0.02845756]
[1732353222742,0.8017,3352.3,3350.9,35.0]
[1732353222913,0.8017,3352.1,3352.0,0.02840882]
[1732353223104,0.8017,3352.1,3351.0,2.99141464]
[1732353223432,0.8017,3352.1,3350.6,0.772]
[1732353223747,0.8017,3352.1,3351.1,35.0]
[1732353224104,0.83899293,3352.1,3351.2,0.02877254]
[1732353224705,0.8017,3352.1,3351.2,0.02877254]
[1732353224955,0.83899293,3352.1,3351.2,3.02018718]
[1732353225315,0.8017,3352.1,3351.2,3.02018718]
[1732353226148,0.772,3352.2,3351.2,3.02018718]
[1732353226149,0.772,3352.2,3351.3,0.772]
[1732353226342,0.772,3352.2,3351.4,2.99141464]
[1732353226652,0.772,3352.2,3351.4,3.02019842]
[1732353227349,0.772,3352.2,3351.4,0.02878378]
[1732353227547,0.772,3352.2,3351.5,35.0]
[1732353227948,0.772,3352.2,3351.6,3.14677386]
[1732353228244,0.772,3352.2,3351.7,0.772]
[1732353228625,0.772,3352.2,3351.8,35.02663414]
[1732353228950,0.772,3352.2,3351.9,2.99141464]
[1732353229310,0.772,3352.2,3352.0,0.026574]
[1732353229513,0.772,3352.2,3351.7,0.772]
[1732353229514,0.772,3352.2,3352.1,35.0]
[1732353229732,0.772,3352.2,3352.1,35.02652852]
[1732353230463,0.772,3352.2,3352.1,38.01794316]
[1732353231328,0.772,3352.2,3352.1,35.02652852]
[1732353232474,0.5737,3352.4,3352.1,35.02652852]
[1732353232667,0.8017,3352.2,3352.1,35.02652852]
[1732353234578,0.8017,3352.2,3352.1,38.14652852]
[1732353234734,0.04728153,3355.2,3352.5,3.12]
[1732353234930,0.04728153,3355.2,3352.6,3.892]
[1732353235136,0.36137701,3355.1,3352.6,3.91864543]
[1732353235436,0.8017,3354.9,3352.6,4.21554543]
[1732353235637,0.8017,3354.8,3352.8,3.4169]
[1732353235832,0.8017,3354.8,3353.0,3.4169]
[1732353236337,0.8017,3354.8,3353.5,0.772]
[1732353236873,0.8017,3354.8,3353.6,0.02809511]
[1732353237030,0.8017,3354.8,3353.7,35.0]
[1732353237430,0.8017,3354.8,3353.8,0.02799771]
[1732353237968,0.8017,3354.8,3353.5,0.772]
[1732353238174,0.8017,3354.8,3353.9,35.02794902]
[1732353238485,0.8017,3354.8,3353.9,35.0]
[1732353238795,0.8017,3354.8,3354.0,0.02790033]
[1732353239238,1.0007501,3354.8,3354.0,0.02790033]
[1732353240541,0.03726309,3354.7,3354.0,0.02790033]
[1732353240944,0.55,3354.5,3354.0,0.02790033]
[1732353241173,0.7713,3354.3,3351.8,0.2969]
[1732353241453,0.7713,3354.3,3352.6,35.0]
[1732353241653,0.7713,3354.3,3352.8,0.7928]
[1732353241976,0.55,3354.5,3351.8,0.2969]
[1732353241977,0.55,3354.0,3352.9,0.02843608]
[1732353242189,0.7713,3353.8,3352.4,0.7928]
[1732353242500,0.03727645,3353.7,3352.5,35.0]
[1732353242662,0.7713,3353.8,3352.5,35.02849834]
[1732353242861,0.7713,3353.8,3352.6,2.99141464]
[1732353243172,0.7713,3353.8,3352.7,0.02840193]
[1732353243674,0.7713,3353.8,3352.8,35.0]
[1732353243880,0.7713,3353.8,3352.8,35.02838531]
[1732353244396,0.75550136,3353.8,3352.8,35.02838531]
[1732353244580,0.75550136,3353.8,3352.9,2.99141464]
[1732353244787,0.75550136,3353.8,3352.9,3.01975123]
[1732353246590,0.75550136,3353.8,3352.9,6.13975123]
[1732353246793,0.75550136,3353.8,3352.9,3.01975123]
[1732353247002,0.75550136,3353.8,3352.9,0.02833659]
[1732353247290,0.75550136,3353.8,3353.0,35.0]
[1732353247599,0.75550136,3353.8,3353.1,0.02822968]
[1732353248591,0.75550136,3353.8,3353.2,0.0282981]
[1732353248789,0.75550136,3353.8,3352.5,35.0]
[1732353248991,0.75550136,3353.8,3353.3,0.02825359]
[1732353249196,0.75550136,3353.8,3352.6,2.99141464]
[1732353249490,0.75550136,3353.8,3353.4,0.02820488]
[1732353249795,0.75550136,3353.8,3352.7,35.0]
[1732353249964,0.75550136,3353.8,3353.5,0.02634129]
[1732353250167,0.75550136,3353.8,3352.7,35.0]
[1732353250369,0.75550136,3353.8,3353.6,0.02629583]
[1732353250584,0.75550136,3353.8,3352.8,2.99141464]
[1732353250786,0.75550136,3353.8,3353.7,0.02625037]
[1732353250994,0.7585,3354.1,3353.1,1.1131]
[1732353251160,0.7585,3354.7,3353.7,0.02624398]
[1732353251366,0.7585,3354.7,3353.1,1.1131]
[1732353251701,0.7585,3354.7,3353.2,1.01935146]
[1732353252001,0.7585,3354.7,3353.3,0.026416]
[1732353252798,0.03726367,3354.6,3353.3,0.026416]
[1732353252959,0.7585,3354.7,3353.3,0.026416]
[1732353253364,0.7585,3354.7,3353.5,0.2969]
[1732353253780,0.7585,3354.7,3353.6,0.0262778]
[1732353254488,0.03726226,3356.2,3353.8,0.2969]
[1732353254489,1.947301,3355.1,3353.8,0.2969]
[1732353254791,1.947301,3355.1,3354.0,0.2969]
[1732353255174,1.947301,3355.1,3354.1,0.02605053]
[1732353255380,1.947301,3355.1,3354.1,35.02605053]
[1732353255568,1.947301,3355.1,3354.2,2.99141464]
[1732353255990,1.947301,3355.1,3354.3,0.02599074]
[1732353256205,1.947301,3355.1,3354.1,35.0]
[1732353256366,1.947301,3355.1,3354.4,0.0259453]
[1732353256705,1.947301,3355.1,3354.1,35.0]
[1732353256877,2.1420311,3355.1,3354.1,35.0]
[1732353257201,2.1420311,3355.1,3354.2,0.02603618]
[1732353257401,0.7585,3355.0,3354.2,0.02603618]
[1732353258675,0.79576275,3354.9,3354.2,0.02603618]
[1732353258888,0.7585,3354.6,3354.2,0.02603618]
[1732353259262,0.7585,3354.6,3353.1,0.8162]
[1732353259680,0.03726739,3354.5,3353.1,0.8162]
[1732353259895,0.7585,3354.6,3353.1,0.8162]
[1732353260104,0.7585,3354.6,3353.2,0.02835998]
[1732353260282,0.7585,3354.6,3353.3,0.8162]
[1732353260798,0.7585,3354.6,3353.4,0.02826255]
[1732353264467,0.7585,3354.6,3353.5,0.7574]
[1732353264695,0.7585,3354.6,3353.6,0.68746626]
[1732353264901,0.7774,3354.9,3353.6,0.71563962]
[1732353265171,0.7774,3354.9,3353.8,0.2969]
[1732353265611,0.7774,3354.9,3353.9,0.02802725]
[1732353268210,1.188801,3355.1,3354.0,0.7574]
[1732353268543,1.188801,3355.1,3354.0,0.78537855]
[1732353268720,1.188801,3355.1,3354.2,4.1743]
[1732353268897,1.188801,3355.1,3354.3,4.20209776]
[1732353269099,1.188801,3355.1,3354.4,4.1743]
[1732353269450,1.188801,3355.1,3354.5,0.02770039]
[1732353269602,1.188801,3355.1,3354.6,0.42020004]
[1732353269807,1.188801,3355.1,3354.6,0.44785175]
[1732353271250,3.04725275,3357.4,3354.6,0.44785175]
[1732353271251,0.7774,3356.0,3354.7,3.8774]
[1732353271546,0.7774,3356.0,3354.8,3.8774]
[1732353271703,1.617962,3355.5,3354.8,0.7574]
[1732353275763,0.7774,3355.4,3354.8,0.7574]
[1732353280427,0.7774,3355.4,3354.1,0.2969]
[1732353280957,0.7774,3355.4,3354.2,0.02779649]
[1732353281522,0.7774,3355.4,3354.3,0.8129]
[1732353281728,0.7774,3355.4,3354.4,0.02769912]
[1732353289431,0.8175,3355.2,3354.4,0.02769912]
[1732353289634,0.8175,3355.2,3354.0,0.7608]
[1732353290238,0.55,3355.1,3353.6,0.7608]
[1732353290467,0.55,3355.3,3353.6,0.7608]
[1732353290644,0.8175,3355.0,3353.6,0.7608]
[1732353291561,0.8175,3355.0,3353.8,3.12]
[1732353291860,1.617962,3355.5,3354.1,0.7608]
[1732353291861,0.8175,3355.4,3354.1,0.7608]
[1732353292081,0.8175,3355.4,3354.2,0.38808]
[1732353292379,0.8175,3355.4,3354.1,0.7608]
[1732353295654,0.8175,3355.4,3354.2,0.7608]
[1732353301659,0.8175,3355.4,3354.3,3.12]
[1732353301975,0.8175,3355.4,3354.2,0.7608]
[1732353302159,0.8175,3355.4,3354.3,0.19908]
[1732353305243,0.832,3355.2,3354.0,1.23]
[1732353305442,0.86926113,3355.1,3354.0,1.23]
[1732353306181,0.832,3355.1,3354.0,1.23]
[1732353306741,0.832,3354.9,3354.0,1.23]
[1732353307057,0.86926168,3354.8,3354.0,1.23]
[1732353307239,0.55,3354.7,3354.0,1.23]
[1732353307443,0.832,3354.5,3354.0,1.23]
[1732353310048,0.55,3354.2,3354.0,1.23]
[1732353310244,1.322,3354.1,3354.0,1.23]
[1732353313194,1.322,3354.1,3354.0,1.07625]
[1732353314595,1.322,3354.1,3354.0,0.24295]
[1732353314882,1.322,3354.1,3354.0,0.02136793]
[1732353315461,1.35928113,3354.1,3354.0,0.02136793]
[1732353316452,1.53334694,3354.1,3354.0,0.02136793]
[1732353316877,0.55,3353.8,3352.0,0.81]
[1732353317084,0.55,3353.4,3351.7,0.81]
[1732353317293,0.55,3353.4,3350.3,0.2969]
[1732353317294,0.772,3352.9,3350.4,0.81]
[1732353317463,0.55,3352.5,3350.4,0.81]
[1732353318692,0.03729172,3354.2,3350.4,0.81]
[1732353318693,0.55,3352.3,3350.4,0.42269]
[1732353318852,0.772,3352.0,3349.1,0.02]
[1732353319052,0.55,3351.7,3349.1,0.02]
[1732353319252,0.772,3351.8,3349.3,0.01]
[1732353319458,0.772,3351.8,3349.5,0.01]
[1732353320851,0.772,3351.8,3349.5,0.56]
[1732353321057,0.772,3351.8,3349.6,3.544]
[1732353321353,0.772,3351.8,3349.6,0.424]
[1732353321673,0.7651,3351.6,3349.6,0.424]
[1732353321862,0.58730201,3351.5,3349.7,0.8048]
[1732353322186,0.7651,3351.4,3349.7,0.8048]
[1732353322992,0.7651,3351.4,3349.8,0.8048]
[1732353323299,0.7651,3351.4,3349.9,0.55]
[1732353323635,0.7651,3351.4,3350.2,0.8048]
[1732353326695,0.7651,3351.4,3350.2,0.7048]
[1732353328411,0.7651,3351.4,3350.3,0.55]
[1732353328616,0.7651,3351.4,3349.5,3.12]
[1732353328767,0.7651,3351.4,3349.8,3.67]
[1732353328974,0.7651,3351.4,3349.8,0.55]
[1732353329175,0.7651,3351.4,3349.6,0.347369]
[1732353329414,0.7651,3351.4,3349.1,0.01]
[1732353329926,0.7651,3351.4,3349.4,3.12]
[1732353330125,0.7651,3351.4,3349.6,0.8048]
[1732353330323,0.7651,3351.4,3349.9,0.8048]
[1732353330910,0.7651,3351.4,3350.4,35.0]
[1732353331533,0.03730286,3351.3,3349.7,0.39248]
[1732353331701,0.7651,3351.6,3349.6,0.8048]
[1732353331911,0.7651,3351.4,3349.6,0.8048]
[1732353332088,0.7651,3351.4,3349.8,35.0]
[1732353332290,0.7651,3351.4,3349.9,2.99141464]
[1732353332996,0.7651,3351.4,3350.0,0.2969]
[1732353333927,0.7651,3351.4,3350.2,0.2969]
[1732353334096,0.7651,3353.0,3350.5,1.1017]
[1732353334433,0.7651,3352.8,3350.5,1.1017]
[1732353334592,0.7651,3352.6,3350.7,0.2969]
[1732353334791,0.80239401,3352.5,3350.7,0.2969]
[1732353335504,0.7651,3352.3,3350.8,35.0]
[1732353335705,0.38867005,3353.1,3350.9,2.99141464]
[1732353335706,0.80239399,3352.2,3350.9,2.99141464]
[1732353336231,0.80239399,3352.2,3350.6,0.2969]
[1732353336440,0.80239399,3352.2,3350.7,35.0]
[1732353336733,0.7651,3352.2,3350.7,35.0]
[1732353337299,0.7651,3352.0,3350.7,35.0]
[1732353337499,0.7651,3351.8,3350.7,35.0]
[1732353337700,0.7651,3351.8,3350.8,2.99141464]
[1732353338165,0.7651,3351.8,3350.3,0.2969]
[1732353338446,0.7651,3351.8,3350.5,0.2969]
[1732353339234,0.7651,3351.8,3350.8,0.2969]
[1732353339439,0.7651,3351.8,3350.9,3.28831464]
[1732353339891,0.7651,3351.8,3350.9,0.2969]
[1732353340095,0.7651,3351.8,3351.0,35.0]
[1732353340435,0.7651,3353.6,3351.3,3.4169]
[1732353340639,0.01,3354.0,3351.3,3.4169]
[1732353340640,0.7651,3353.4,3351.5,0.2969]
[1732353340845,0.84548461,3353.3,3351.5,0.2969]
[1732353341155,0.83548461,3353.3,3351.6,35.40153092]
[1732353341349,0.83548461,3353.3,3351.6,35.383907]
[1732353341645,0.8082,3353.1,3351.6,35.0]
[1732353341796,0.8082,3353.1,3351.1,0.2969]
[1732353341797,0.84549193,3353.0,3351.1,0.2969]
[1732353342294,0.84549193,3353.0,3351.2,35.0]
[1732353342627,0.55,3352.9,3351.2,35.0]
[1732353342797,0.8082,3352.6,3351.1,0.2969]
[1732353342993,0.8082,3352.4,3351.1,0.2969]
[1732353343200,0.84549482,3352.3,3351.1,35.2969]
[1732353343710,0.8082,3352.1,3350.5,0.2969]
[1732353343916,0.84550014,3352.0,3349.9,0.01765497]
[1732353344231,0.84550014,3352.0,3350.0,35.0]
[1732353344547,0.8082,3352.0,3350.1,2.99141464]
[1732353344711,1.3582,3351.9,3350.2,0.2969]
[1732353344911,1.3582,3351.7,3350.2,0.2969]
[1732353345114,0.84550439,3351.6,3350.3,35.0]
[1732353345300,0.84550439,3351.6,3350.4,2.99141464]
[1732353345700,0.84550439,3351.6,3349.6,0.3145643]
[1732353346143,0.84550439,3351.6,3349.8,0.2969]
[1732353346362,0.8082,3351.4,3349.8,0.2969]
[1732353346514,0.8082,3351.2,3349.8,0.2969]
[1732353346711,0.8082,3351.0,3349.8,0.2969]
[1732353346912,0.8082,3350.8,3349.9,35.0]
[1732353347129,0.8082,3350.8,3349.9,37.99141464]
[1732353347328,0.8082,3350.8,3349.9,35.0]
[1732353347648,0.8082,3350.6,3349.9,35.0]
[1732353348030,0.8082,3350.6,3347.7,0.8233]
[1732353348233,0.55,3350.3,3348.0,0.01767735]
[1732353348556,0.8082,3350.1,3349.0,35.0]
[1732353348768,0.8082,3349.9,3349.0,35.0]
[1732353349348,0.03732166,3349.8,3349.0,35.0]
[1732353349506,0.8082,3349.7,3349.0,35.0]
[1732353349703,0.8082,3349.7,3349.0,35.60931348]
[1732353350338,0.27092333,3349.6,3349.0,35.60931348]
[1732353350723,0.7645,3349.3,3346.9,0.8233]
[1732353350916,0.7645,3349.1,3347.0,0.01771166]
[1732353351236,0.7645,3348.9,3347.0,0.01771166]
[1732353351442,0.27076405,3348.8,3347.0,0.01771166]
[1732353351741,0.27076405,3348.8,3347.4,35.0]
[1732353351941,0.7645,3348.7,3347.5,3.00912779]
[1732353352327,0.7645,3348.6,3347.5,3.00912779]
[1732353352507,0.7645,3348.6,3347.5,0.01771315]
[1732353353123,0.26996445,3348.5,3347.4,35.0]
[1732353353406,0.7645,3348.4,3347.4,35.0]
[1732353353606,0.7645,3348.4,3347.5,2.99141464]
[1732353354216,0.7645,3348.4,3347.6,0.01772296]
[1732353354770,0.7645,3348.4,3347.7,0.813]
[1732353354932,0.7645,3348.4,3347.8,0.01771532]
[1732353355464,0.7645,3348.7,3347.9,35.0]
[1732353355757,0.7645,3348.7,3348.0,3.00912057]
[1732353356061,0.7645,3348.7,3348.2,0.813]
[1732353356260,0.7645,3348.7,3348.0,0.01770593]
[1732353356261,0.76260836,3348.7,3348.0,0.01770593]
[1732353356561,0.76260836,3348.7,3348.3,35.0]
[1732353356743,0.7645,3348.6,3348.3,35.0]
[1732353358248,0.7645,3348.6,3348.3,37.99141464]
[1732353360369,0.7645,3348.6,3348.4,0.01771113]
[1732353360521,0.76260836,3348.7,3348.4,0.01771113]
[1732353360720,0.76260836,3348.7,3348.5,35.0]
[1732353361596,0.76260836,3348.7,3348.5,38.12]
[1732353361915,0.76260836,3348.7,3348.6,2.99141464]
[1732353363575,0.55,3350.8,3348.6,4.11271464]
[1732353363882,0.7691,3349.4,3348.7,0.01768711]
[1732353364081,0.7691,3349.4,3348.8,2.99141464]
[1732353364290,0.7691,3349.4,3348.9,0.01768909]
[1732353365226,0.7691,3349.4,3348.7,0.01769098]
[1732353367187,0.7691,3349.4,3348.2,0.2969]
[1732353367188,0.8109,3349.3,3348.2,0.2969]
[1732353367431,0.8109,3349.3,3348.3,0.0176977]
[1732353369025,0.9689,3349.3,3348.3,0.0176977]
[1732353369296,0.9689,3349.3,3347.9,0.01769896]
[1732353369518,0.8109,3349.1,3347.8,0.3146067]
[1732353371303,0.8109,3349.1,3347.9,0.8469]
[1732353371501,0.8109,3349.1,3348.0,0.21628977]
[1732353372229,0.2708833,3349.0,3348.0,0.21628977]
[1732353372813,0.84822543,3348.9,3347.9,0.01770554]
[1732353373135,0.27093289,3348.8,3347.8,0.0177103]
[1732353373345,0.27093289,3348.8,3346.9,3.12]
[1732353373526,0.27093289,3348.8,3347.1,0.8244]
[1732353373870,0.27093289,3348.8,3347.2,0.01771335]
[1732353374144,0.27093289,3348.8,3347.2,0.31461335]
[1732353375157,0.84823136,3348.7,3347.2,0.31461335]
[1732353375293,0.27093289,3348.6,3347.2,0.31461335]
[1732353375497,0.8109,3348.5,3347.2,0.31461335]
[1732353375741,0.27093289,3348.4,3347.2,0.31461335]
[1732353375950,0.27093289,3348.4,3347.2,0.01771335]
[1732353378747,0.03733623,3348.3,3347.2,0.01771335]
[1732353378899,0.27093289,3348.2,3347.1,0.8244]
[1732353379241,0.27093289,3348.2,3347.2,0.01772717]
[1732353379752,0.03733625,3348.2,3347.2,0.01772717]
[1732353379894,0.2707906,3348.1,3347.2,0.01772717]
[1732353380095,0.2707906,3348.0,3347.2,0.01772717]
[1732353380328,0.2707906,3347.9,3347.2,0.01772717]
[1732353380525,0.2707906,3347.8,3347.2,0.01772717]
[1732353380778,0.2707906,3347.7,3347.2,0.01772717]
[1732353380961,0.03733642,3348.4,3347.2,0.01772717]
[1732353381277,0.27047342,3348.3,3347.1,0.8244]
[1732353381428,0.03733629,3348.2,3347.1,0.8244]
[1732353381633,0.27047342,3348.1,3347.1,0.8244]
[1732353382079,0.30780972,3348.4,3347.1,0.8244]
[1732353382378,0.27047342,3348.3,3347.1,0.8244]
[1732353382528,0.03733631,3348.2,3347.1,0.8244]
[1732353382733,0.27047342,3348.1,3347.1,0.8244]
[1732353383393,1.06157342,3348.0,3347.1,0.8244]
[1732353383536,0.7911,3348.0,3347.1,0.8244]
[1732353383740,0.27044956,3347.9,3347.1,0.8244]
[1732353386148,0.27044956,3347.9,3347.3,0.7626]
[1732353386348,0.7911,3349.0,3347.5,0.7626]
[1732353386592,0.27024101,3348.9,3347.6,0.78030849]
[1732353387392,0.27024101,3348.9,3347.7,0.55]
[1732353387565,0.7691,3349.4,3348.0,0.55]
[1732353387747,0.27024239,3349.3,3348.1,0.18041489]
[1732353387952,0.7691,3349.4,3348.4,0.827]
[1732353388251,0.7691,3349.4,3348.5,0.01769164]
[1732353388481,0.78811845,3349.3,3348.4,0.827]
[1732353388693,0.27018282,3349.2,3348.4,0.827]
[1732353390098,0.7508,3349.3,3348.4,0.827]
[1732353390279,0.27025163,3349.2,3348.4,0.827]
[1732353391263,0.27025163,3349.2,3348.5,0.01770015]
[1732353391636,0.7691,3349.4,3348.1,0.827]
[1732353391782,0.7691,3349.4,3348.3,0.827]
[1732353391982,0.7691,3349.4,3348.5,0.827]
[1732353392197,0.7691,3349.4,3348.6,0.01769106]
[1732353392698,0.7691,3349.4,3348.5,0.84469083]
[1732353393025,0.2705212,3349.3,3348.5,0.84469083]
[1732353393332,0.2705212,3349.3,3348.6,0.01769647]
[1732353393526,0.7691,3349.4,3348.6,0.01769647]
[1732353394026,0.27053786,3349.3,3348.5,0.827]
[1732353394584,0.7508,3349.2,3347.8,0.2969]
[1732353394790,0.27053786,3349.1,3347.9,0.86459843]
[1732353395126,0.27053786,3349.1,3348.1,0.827]
[1732353395346,0.27053786,3349.1,3348.2,0.01769828]
[1732353396308,0.27053786,3349.1,3348.1,0.827]
[1732353396309,0.30785931,3349.1,3348.1,0.827]
[1732353396496,0.27053786,3349.0,3348.1,0.827]
[1732353397087,0.7508,3349.2,3348.1,0.827]
[1732353397307,0.27061554,3349.1,3348.1,0.827]
[1732353397833,0.27061554,3349.1,3348.2,0.2969]
[1732353398187,0.03732684,3349.0,3348.2,0.2969]
[1732353398531,0.27061554,3348.9,3348.2,0.2969]
[1732353399026,0.7508,3348.8,3348.0,0.2969]
[1732353399184,0.27061554,3348.7,3348.0,0.2969]
[1732353399393,0.27055513,3348.6,3347.7,0.2969]
[1732353399594,0.27055513,3348.7,3347.7,0.2969]
[1732353399796,0.27055513,3348.6,3347.7,0.2969]
[1732353400004,0.27055513,3348.5,3347.7,0.2969]
[1732353400286,0.27055513,3348.4,3347.7,0.2969]
[1732353400488,0.7508,3348.6,3347.4,0.2969]
[1732353400798,0.27061092,3348.5,3347.4,0.31462231]
[1732353401323,0.27061092,3348.5,3347.4,0.2969]
[1732353401647,0.27061092,3348.5,3347.6,0.2969]
[1732353401814,0.27061092,3348.5,3347.8,0.8061]
[1732353402131,0.27061092,3348.5,3347.9,0.01771178]
[1732353402331,0.27061092,3348.4,3347.9,0.01771178]
[1732353402552,0.27061092,3348.8,3347.9,0.01771178]
[1732353402687,0.27079852,3348.7,3347.9,0.01771178]
[1732353403036,0.27079852,3348.6,3348.1,3.4169]
[1732353403189,0.27082037,3349.2,3348.5,0.2969]
[1732353403391,0.27080128,3349.1,3348.6,0.01769425]
[1732353403735,0.27080128,3349.0,3348.6,0.01769425]
[1732353403918,0.27080128,3349.3,3348.6,0.01769425]
[1732353404085,0.27080128,3348.9,3348.6,0.78089368]
[1732353404285,0.7691,3349.4,3348.7,1.103]
[1732353404520,0.27078727,3349.3,3348.8,0.20608124]
[1732353404900,0.27078727,3349.3,3348.8,0.18838937]
[1732353406133,0.27078727,3349.3,3348.7,1.103]
[1732353407528,0.7691,3349.4,3348.7,1.103]
[1732353407529,0.27089352,3349.2,3348.7,1.103]
[1732353407714,0.27089352,3349.1,3348.8,0.01769291]
[1732353407915,0.27089352,3349.0,3348.8,0.01769291]
[1732353408131,0.7691,3349.4,3348.8,0.01769291]
[1732353408334,0.27091341,3349.3,3348.8,0.01769291]
[1732353409265,0.27091341,3349.3,3349.2,0.2969]
[1732353409433,0.7691,3349.4,3349.3,1.103]
[1732353409630,0.7691,3349.4,3349.3,4.773]
[1732353410343,0.7691,3349.4,3349.3,1.103]
[1732353412926,0.7691,3349.4,3349.3,0.8061]
[1732353413116,0.7691,3349.4,3349.3,4.223]
[1732353413318,0.8308,3350.9,3349.7,0.8061]
[1732353413545,0.27075016,3350.8,3349.7,0.8237613]
[1732353413753,0.3080559,3350.8,3349.7,0.8237613]
[1732353413924,0.3080559,3350.8,3349.7,0.8061]
[1732353414131,0.30805875,3350.7,3349.7,0.8061]
[1732353414459,0.27075016,3350.6,3349.7,0.8061]
[1732353414662,1.10155016,3350.5,3349.7,0.8061]
[1732353414863,0.7691,3351.4,3349.8,0.01767186]
[1732353414864,0.27075016,3350.4,3349.8,0.01767186]
[1732353415070,0.27075016,3350.3,3349.8,0.01767186]
[1732353415226,0.8308,3350.8,3349.8,0.01767186]
[1732353415421,0.27085086,3350.7,3349.8,0.01767186]
[1732353416172,0.27085086,3350.7,3349.9,0.8061]
[1732353416465,0.7691,3351.4,3349.0,3.4169]
[1732353416466,0.27085086,3350.6,3350.1,0.8061]
[1732353416616,1.5999,3351.4,3350.2,0.01765593]
[1732353416959,0.8308,3351.2,3349.5,0.2969]
[1732353417117,0.27119549,3351.1,3349.7,0.2969]
[1732353417323,0.27119549,3351.1,3349.8,1.12066709]
[1732353417674,0.27109808,3351.0,3349.9,0.8061]
[1732353417874,0.27109808,3351.1,3350.1,0.8061]
[1732353418022,0.27109808,3351.0,3350.2,0.01765407]
[1732353418223,0.27109808,3350.9,3350.2,0.01765407]
[1732353418517,0.92909,3351.4,3350.2,0.01765407]
[1732353418723,0.27099741,3351.3,3350.2,0.01765407]
[1732353420366,0.8308,3351.1,3349.7,0.8061]
[1732353420567,0.8308,3351.1,3349.8,0.01766686]
[1732353420568,0.27099741,3351.0,3349.8,0.01766686]
[1732353420867,0.7625,3350.9,3349.7,0.8061]
[1732353421169,0.7625,3350.7,3349.7,0.8061]
[1732353421474,0.30830693,3350.6,3349.7,0.8061]
[1732353421668,0.27099741,3350.5,3349.7,0.8061]
[1732353421882,0.27099741,3350.4,3349.8,0.01767373]
[1732353422178,0.27099741,3350.3,3349.8,0.01767373]
[1732353422378,0.27099741,3350.2,3349.8,0.01767373]
[1732353422576,0.7625,3350.7,3349.8,0.01767373]
[1732353422881,0.27070875,3350.6,3349.8,0.01767373]
[1732353423385,0.27067675,3350.5,3349.7,0.8061]
[1732353423538,0.27067675,3350.6,3349.7,0.8061]
[1732353423735,0.27067675,3350.5,3349.8,0.01767371]
[1732353423941,0.27067675,3350.6,3349.8,0.01767371]
[1732353424135,0.27067675,3350.5,3349.8,0.01767371]
[1732353424385,0.27067675,3350.6,3349.8,0.01767371]
[1732353424678,0.27067675,3350.5,3349.8,0.01767371]
[1732353424843,0.27067675,3350.4,3349.8,0.01767371]
[1732353425178,0.27067675,3350.3,3349.7,0.8061]
[1732353425363,0.27052986,3350.2,3349.7,0.8061]
[1732353425591,0.27051238,3350.1,3348.7,0.8057]
[1732353425904,0.7625,3350.5,3348.8,0.82337882]
[1732353426110,0.27059317,3350.4,3349.1,0.55]
[1732353426264,0.7625,3351.3,3349.4,1.1026]
[1732353426467,0.27059474,3351.2,3349.6,0.8057]
[1732353426801,0.03730039,3351.2,3349.8,0.8057]
[1732353426985,0.46612278,3351.1,3349.9,0.01765974]
[1732353427192,0.27058731,3351.0,3349.9,0.01765974]
[1732353427785,0.27058731,3351.0,3349.9,0.31455974]
[1732353428098,0.27058731,3351.0,3349.8,0.8057]
[1732353428099,0.7625,3350.8,3349.8,0.8057]
[1732353428269,0.27058731,3350.7,3350.0,0.01766053]
[1732353428472,0.27058731,3350.7,3349.8,0.8057]
[1732353429097,0.27058731,3350.7,3349.6,0.01766751]
[1732353429098,0.30789371,3350.7,3349.6,0.31456751]
[1732353429301,0.27058731,3350.6,3349.6,0.2969]
[1732353430011,0.0373064,3350.7,3349.6,0.2969]
[1732353430308,1.03318349,3350.6,3349.6,0.2969]
[1732353430610,1.07049557,3350.5,3349.3,0.2969]
[1732353430803,0.27068349,3350.4,3349.4,0.01767878]
[1732353431810,0.27068349,3350.4,3349.3,0.31457877]
[1732353431963,0.79981204,3350.3,3349.3,0.2969]
[1732353432169,0.27068349,3350.2,3349.3,0.31458099]
[1732353433463,0.7625,3350.3,3349.3,0.31458099]
[1732353433695,0.27145169,3350.2,3349.3,0.31458099]